fUSD/lending_fUSD_20240404
["ID","MTS","AMOUNT","RATE_DAILY","PERIOD"]
[321442063,1712190721498,-873.47,0.00055616,120]
[321442064,1712190721508,-3860.65,0.00055616,120]
[321442065,1712190721517,-2020.42,0.00055616,120]
[321442066,1712190721526,-5629.68,0.00055616,120]
[321442067,1712190721536,-601.86921785,0.00055616,120]
[321442068,1712190721545,-500.0,0.00055616,2]
[321442069,1712190721555,-1629.02,0.00055616,120]
[321442070,1712190721565,-2185.74,0.00055616,120]
[321442071,1712190721574,-591.17,0.00055616,120]
[321442072,1712190721585,-500.0,0.00055616,120]
[321442073,1712190721594,-2282.83,0.00055616,120]
[321442074,1712190721603,-749.89,0.00055616,120]
[321442075,1712190721613,-1283.01,0.00055616,120]
[321442076,1712190721622,-500.0,0.00055616,120]
[321442077,1712190721631,-230.3301978,0.00055647,120]
[321442078,1712190721640,-1501.5936043,0.00055652,2]
[321442079,1712190721652,-219.1750199,0.00055652,2]
[321442080,1712190721662,-3945.1322585,0.00055652,2]
[321442081,1712190721671,-996.82,0.00055671,2]
[321442082,1712190721681,-161107.82142185,0.0005569,120]
[321442083,1712190722290,-45991.68857815,0.0005569,120]
[321442084,1712190722300,-497700.52910681,0.0005569,120]
[321442085,1712190722382,-150.29,0.00041,2]
[321442086,1712190722392,-1035.18,0.00055342,120]
[321442087,1712190722403,-530.31688093,0.00055342,120]
[321442088,1712190722412,-500.0,0.00055616,120]
[321442089,1712190722422,-1047.49,0.00055616,120]
[321442090,1712190722431,-254.25059798,0.00055616,120]
[321442091,1712190722548,-150.29,0.00041,2]
[321442092,1712190722559,-245.74940202,0.00055616,120]
[321442093,1712190722656,-2299.47089319,0.0005569,120]
[321442094,1712190722665,-150.0,0.000557,120]
[321442095,1712190722675,-1000.0,0.00055708,120]
[321442096,1712190722684,-529.32078117,0.00055717,120]
[321442097,1712190722693,-995.74,0.0005572,2]
[321442098,1712190722703,-500.0,0.00055753,120]
[321442099,1712190722712,-5024.82841,0.00055759,30]
[321442100,1712190722721,-235.23830693,0.000558,30]
[321442101,1712190722730,-300.0,0.000558,32]
[321442102,1712190722739,-151.0,0.000558,7]
[321442103,1712190722749,-219.1750199,0.00055852,2]
[321442104,1712190722758,-1447.74018679,0.00055852,2]
[321442105,1712190723413,-558.24500007,0.00024596,2]
[321442106,1712190723424,-498.49326402,0.00024596,2]
[321442107,1712190724280,-886.51927329,0.00024596,2]
[321442108,1712190724289,-812.289,0.00030204,2]
[321442109,1712190724298,-150.0,0.00040396,2]
[321442110,1712190724307,-150.0,0.00040448,2]
[321442111,1712190724316,-221.06395874,0.00040498,2]
[321442112,1712190724325,-150.0,0.00040512,2]
[321442113,1712190724334,-150.0,0.00040532,2]
[321442114,1712190724343,-150.0,0.00040542,2]
[321442115,1712190724353,-150.0,0.00040568,2]
[321442116,1712190724362,-300.0,0.00040592,2]
[321442117,1712190724371,-150.0,0.00040599,2]
[321442118,1712190724380,-150.29,0.00041,2]
[321442119,1712190724389,-150.29,0.00041,2]
[321442120,1712190724399,-150.29,0.00041,2]
[321442121,1712190724408,-150.29,0.00041,2]
[321442122,1712190724417,-150.29,0.00041,2]
[321442123,1712190724426,-150.29,0.00041,2]
[321442124,1712190724435,-150.29,0.00041,2]
[321442125,1712190724445,-150.29,0.00041,2]
[321442126,1712190724454,-150.29,0.00041,2]
[321442127,1712190724463,-150.29,0.00041,2]
[321442128,1712190724472,-150.29,0.00041,2]
[321442129,1712190724481,-15.85554117,0.00041,2]
[321442130,1712190724492,-134.43445883,0.00041,2]
[321442131,1712190724502,-150.29,0.00041,2]
[321442132,1712190724511,-150.29,0.00041,2]
[321442133,1712190724520,-150.29,0.00041,2]
[321442134,1712190724529,-150.29,0.00041,2]
[321442135,1712190724538,-150.29,0.00041,2]
[321442136,1712190724547,-150.29,0.00041,2]
[321442137,1712190724556,-150.29,0.00041,2]
[321442138,1712190724567,-150.29,0.00041,2]
[321442139,1712190724575,-150.29,0.00041,2]
[321442140,1712190724585,-150.29,0.00041,2]
[321442141,1712190724594,-150.29,0.00041,2]
[321442142,1712190724603,-150.29,0.00041,2]
[321442143,1712190724612,-150.29,0.00041,2]
[321442144,1712190724622,-150.29,0.00041,2]
[321442145,1712190724631,-150.29,0.00041,2]
[321442146,1712190724640,-150.29,0.00041,2]
[321442147,1712190724651,-150.29,0.00041,2]
[321442148,1712190724661,-156.24,0.000496,6]
[321442149,1712190724670,-156.24,0.000496,6]
[321442150,1712190724679,-156.24,0.000496,6]
[321442151,1712190724688,-156.24,0.000496,6]
[321442152,1712190724697,-156.24,0.000496,6]
[321442153,1712190724706,-156.24,0.000496,6]
[321442154,1712190724716,-156.24,0.000496,6]
[321442155,1712190724725,-43.81674352,0.000496,6]
[321442156,1712190726018,-293.64281367,0.00023753,2]
[321442158,1712191519970,250.0,0.00023,3]
[321442159,1712191625125,-155.0,0.00020658,2]
[321442160,1712191625146,-888.68673272,0.00020659,2]
[321442163,1712191831852,-207.88455727,0.00024397,2]
[321442164,1712191831861,-201.49544273,0.00024496,2]
[321442165,1712191831890,-20.60451332,0.00024496,2]
[321442166,1712191831900,-438.1337887,0.00024497,2]
[321442167,1712191831909,-6621.7507604,0.00024498,2]
[321442168,1712191832106,-1232.936,0.00024498,2]
[321442190,1712191837869,-1314.31391189,0.00024496,2]
[321442191,1712191837879,-1892.02709441,0.00024498,2]
[321442192,1712191837930,-90253.28614519,0.00024498,2]
[321442193,1712191837939,-500.0,0.00024498,2]
[321442194,1712191837948,-1000.0,0.00024498,2]
[321442195,1712191837958,-150.0,0.00024986,2]
[321442196,1712191837967,-2600.3152557,0.00025,2]
[321442197,1712191837976,-300.0,0.00025,3]
[321442198,1712191837986,-350.0,0.00027,3]
[321442199,1712191837995,-297.93,0.0002884,2]
[321442200,1712191838004,-499.99,0.0002884,2]
[321442201,1712191838013,-400.0,0.00029,3]
[321442202,1712191838022,-410.86387487,0.000295,3]
[321442203,1712191838032,-2639.48076778,0.0002999,2]
[321442204,1712191838042,-321.90177082,0.0003,4]
[321442205,1712191838051,-695.84897936,0.0003,4]
[321442206,1712191838062,-155.0,0.0003,2]
[321442207,1712191838071,-405.14841286,0.0003,4]
[321442208,1712191838080,-3205.84389542,0.0003,2]
[321442209,1712191838090,-606.55912079,0.0003,4]
[321442210,1712191838099,-450.0,0.00031,3]
[321442211,1712191838108,-473.90371975,0.00032,4]
[321442212,1712191838118,-156.25,0.00032877,2]
[321442213,1712191838127,-156.25,0.00032877,2]
[321442214,1712191838137,-500.0,0.00033,3]
[321442215,1712191838146,-270.86,0.0003403,2]
[321442216,1712191838156,-150.0,0.00034548,10]
[321442217,1712191838165,-9053.58976532,0.000348,4]
[321442218,1712191838174,-12713.0,0.00035,30]
[321442219,1712191838183,-1281.21723531,0.00035,4]
[321442220,1712191838192,-550.0,0.00035,3]
[321442221,1712191838201,-250.0,0.0003603,112]
[321442222,1712191838210,-291.71,0.00036169,2]
[321442223,1712191838219,-270.86,0.00036293,2]
[321442224,1712191838228,-150.0,0.00036638,2]
[321442225,1712191838238,-228.29,0.00036874,2]
[321442226,1712191838247,-155.0,0.00036898,4]
[321442227,1712191838256,-600.0,0.00037,3]
[321442228,1712191838266,-23890.0,0.00037055,2]
[321442229,1712191838275,-625.3,0.00037163,2]
[321442230,1712191838285,-150.0,0.00037617,2]
[321442231,1712191838294,-1016.82,0.00037666,2]
[321442232,1712191838303,-1000.0,0.00037808,2]
[321442233,1712191838313,-2100.0,0.00038,7]
[321442235,1712191838322,-628.76,0.00038027,15]
[321442236,1712191838331,-489.98833825,0.000385,4]
[321442237,1712191838340,-270.86,0.00038557,2]
[321442238,1712191838349,-150.0,0.00038595,2]
[321442239,1712191838358,-4216.29442521,0.000388,2]
[321442240,1712191838367,-4064.11230153,0.000389,15]
[321442241,1712191838376,-291.71,0.00038909,2]
[321442242,1712191838386,-650.0,0.00039,3]
[321442243,1712191838398,-150.0,0.00039574,2]
[321442244,1712191838407,-2500.0,0.0003983,2]
[321442245,1712191838416,-9299.37351369,0.0003993,2]
[321442246,1712191838430,-2400.00191258,0.0004,30]
[321442247,1712191838441,-22098.16965284,0.0004,4]
[321442248,1712191838450,-547.00820039,0.0004,4]
[321442249,1712191838460,-192.70693193,0.0004,2]
[321442250,1712191838469,-5757.17728566,0.0004,4]
[321442251,1712191838478,-500.0,0.00040103,20]
[321442252,1712191838488,-34911.50524502,0.00040284,2]
[321442253,1712191838498,-150.0,0.00040284,2]
[321442254,1712191838507,-150.0,0.00040284,2]
[321442255,1712191838516,-200.0,0.00040284,2]
[321442256,1712191838526,-405.83051064,0.0004048,2]
[321442257,1712191838537,-539.75528474,0.0004048,12]
[321442258,1712191838547,-1991.0,0.00040548,30]
[321442259,1712191838556,-150.0,0.00040553,2]
[321442260,1712191838568,-560.58443518,0.00040576,4]
[321442261,1712191838577,-156.58470025,0.00040577,4]
[321442262,1712191838587,-5222.67279347,0.00040577,2]
[321442263,1712191838597,-393.98,0.00040577,2]
[321442264,1712191838606,-393.98,0.00040577,2]
[321442265,1712191838616,-393.98,0.00040577,2]
[321442266,1712191838625,-393.98,0.00040577,2]
[321442267,1712191838634,-393.98,0.00040577,2]
[321442268,1712191838644,-393.98,0.00040577,2]
[321442269,1712191838653,-394.01,0.00040577,2]
[321442270,1712191838663,-194542.66591428,0.00040578,2]
[321442271,1712191838672,-242.97166787,0.0004058,4]
[321442272,1712191838682,-1005.02,0.000406,2]
[321442273,1712191838691,-213.66270107,0.00040742,30]
[321442274,1712191838701,-628.76,0.00040767,15]
[321442275,1712191838711,-270.86,0.00040821,2]
[321442276,1712191838721,-156.25,0.00040885,2]
[321442277,1712191838731,-274.32618057,0.00040998,4]
[321442278,1712191838740,-700.0,0.00041,3]
[321442279,1712191838750,-183.0,0.00041096,2]
[321442280,1712191838759,-180.0,0.00041295,2]
[321442281,1712191838769,-1005.02,0.0004146,2]
[321442282,1712191838779,-150.0,0.00041531,2]
[321442283,1712191838788,-291.71,0.00041648,2]
[321442284,1712191838797,-405.83051062,0.00041671,2]
[321442285,1712191838807,-1005.02,0.0004232,2]
[321442286,1712191838817,-150.0,0.0004251,2]
[321442287,1712191838827,-1000.0,0.00042534,2]
[321442288,1712191838836,-405.83051062,0.00042863,2]
[321442289,1712191838846,-721.41904155,0.00043,4]
[321442290,1712191838856,-750.0,0.00043,3]
[321442291,1712191838866,-270.86,0.00043085,2]
[321442292,1712191838875,-1005.02,0.0004318,2]
[321442293,1712191838885,-150.0,0.00043489,2]
[321442294,1712191838894,-628.76,0.00043507,15]
[321442295,1712191838904,-150.0,0.0004378,53]
[321442296,1712191838913,-346.20599944,0.00043835,2]
[321442297,1712191838923,-176.73,0.00043836,2]
[321442298,1712191838932,-1005.02,0.0004404,2]
[321442299,1712191838942,-405.83051062,0.00044054,2]
[321442300,1712191838952,-150.0,0.00044467,2]
[321442301,1712191838961,-1005.02,0.000449,2]
[321442302,1712191838970,-873.94226474,0.00044986,4]
[321442303,1712191838980,-328.38424403,0.00045,4]
[321442304,1712191838989,-187.26267737,0.00045,14]
[321442305,1712191838999,-170.18558486,0.00045,7]
[321442306,1712191839008,-800.0,0.00045,3]
[321442307,1712191839020,-707.0,0.0004522,7]
[321442308,1712191839029,-405.83051062,0.00045246,2]
[321442309,1712191839039,-270.86,0.00045349,2]
[321442310,1712191839048,-150.0,0.00045446,2]
[321442311,1712191839057,-1005.02,0.0004576,2]
[321442312,1712191839068,-628.76,0.00046247,15]
[321442313,1712191839077,-150.0,0.00046425,2]
[321442314,1712191839087,-405.83051062,0.00046437,2]
[321442315,1712191839096,-150.0,0.0004649,58]
[321442316,1712191839105,-904.55,0.00046518,2]
[321442317,1712191839115,-1005.02,0.0004662,2]
[321442318,1712191839124,-150.0,0.00046792,2]
[321442319,1712191839133,-161.88,0.00046792,2]
[321442320,1712191839142,-850.0,0.00047,3]
[321442321,1712191839152,-150.0,0.00047164,120]
[321442322,1712191839161,-1000.0,0.0004726,2]
[321442323,1712191839170,-205.08721929,0.00047283,7]
[321442324,1712191839179,-150.0,0.00047403,2]
[321442325,1712191839188,-1005.02,0.0004748,2]
[321442326,1712191839198,-270.86,0.00047613,2]
[321442327,1712191839207,-405.83051062,0.00047629,2]
[321442328,1712191839216,-176.73,0.00047945,2]
[321442329,1712191839226,-1000.0,0.00048065,2]
[321442330,1712191839235,-228.29,0.00048107,120]
[321442331,1712191839244,-1005.02,0.0004834,2]
[321442332,1712191839254,-150.0,0.00048382,2]
[321442333,1712191839264,-158.77529118,0.00048384,30]
[321442334,1712191839273,-158.77529118,0.00048453,30]
[321442335,1712191839283,-155.2251499,0.00048497,30]
[321442336,1712191839292,-155.2251499,0.00048693,30]
[321442337,1712191839301,-155.2251499,0.0004877,30]
[321442338,1712191839311,-405.83051062,0.0004882,2]
[321442339,1712191839320,-156.25,0.00048894,2]
[321442340,1712191839329,-1016.82,0.00048898,120]
[321442341,1712191839339,-628.76,0.00048986,15]
[321442342,1712191839349,-1211.0,0.00049,4]
[321442343,1712191839358,-2500.0,0.00049,70]
[321442344,1712191839367,-900.0,0.00049,3]
[321442345,1712191839376,-1005.02,0.000492,2]
[321442346,1712191839385,-150.0,0.000492,63]
[321442347,1712191839397,-1000.0,0.0004926,5]
[321442348,1712191839406,-1000.0,0.0004926,5]
[321442349,1712191839415,-1000.0,0.0004926,5]
[321442350,1712191839424,-1000.0,0.0004926,5]
[321442351,1712191839434,-1000.0,0.0004926,5]
[321442352,1712191839444,-1000.0,0.0004926,5]
[321442353,1712191839453,-676.0,0.0004926,5]
[321442354,1712191839462,-1790.46,0.00049315,60]
[321442355,1712191839472,-155.2251499,0.00049319,30]
[321442356,1712191839482,-150.0,0.00049361,2]
[321442357,1712191839491,-155.2251499,0.00049383,30]
[321442358,1712191839500,-150.31,0.0004948,120]
[321442359,1712191839509,-393.98,0.00049489,15]
[321442360,1712191839518,-393.98,0.00049489,15]
[321442361,1712191839527,-394.01,0.00049489,15]
[321442363,1712191839536,-217728.50616755,0.0004949,15]
[321442365,1712191839546,-243.0,0.000496,6]
[321442367,1712191839556,-3238.0,0.000497,6]
[321442370,1712191839567,-3238.0,0.000497,6]
[321442373,1712191839576,-3238.0,0.000497,6]
[321442375,1712191839586,-3238.0,0.000497,6]
[321442377,1712191839595,-3238.0,0.000497,6]
[321442380,1712191839605,-3238.0,0.000497,6]
[321442383,1712191839614,-3238.0,0.000497,6]
[321442386,1712191839624,-164.2,0.000497,6]
[321442389,1712191839633,-3238.0,0.000497,6]
[321442392,1712191839643,-164.2,0.000497,6]
[321442395,1712191839652,-164.2,0.000497,6]
[321442398,1712191839662,-3238.0,0.000497,6]
[321442401,1712191839671,-164.2,0.000497,6]
[321442403,1712191839681,-3238.0,0.000497,6]
[321442405,1712191839690,-164.2,0.000497,6]
[321442407,1712191839700,-3238.0,0.000497,6]
[321442409,1712191839709,-164.2,0.000497,6]
[321442412,1712191839718,-3238.0,0.000497,6]
[321442415,1712191839728,-3238.0,0.000497,6]
[321442418,1712191839738,-164.2,0.000497,6]
[321442421,1712191839747,-3238.0,0.000497,6]
[321442424,1712191839757,-164.2,0.000497,6]
[321442427,1712191839766,-3238.0,0.000497,6]
[321442430,1712191839775,-164.2,0.000497,6]
[321442433,1712191839786,-3238.0,0.000497,6]
[321442436,1712191839795,-3238.0,0.000497,6]
[321442439,1712191839805,-3238.0,0.000497,6]
[321442442,1712191839815,-164.2,0.000497,6]
[321442445,1712191839824,-3238.0,0.000497,6]
[321442448,1712191839835,-164.2,0.000497,6]
[321442451,1712191839844,-164.2,0.000497,6]
[321442454,1712191839854,-3238.0,0.000497,6]
[321442458,1712191839864,-152.0,0.00049738,3]
[321442461,1712191839874,-20767.71815497,0.000498,60]
[321442464,1712191839883,-270.86,0.00049877,2]
[321442467,1712191839893,-150.31,0.0004999,120]
[321442470,1712191839903,-14312.30295353,0.0005,120]
[321442474,1712191839912,-155.01554647,0.0005,2]
[321442513,1712191840259,-1420.99825891,0.0005,21]
[321442515,1712191840269,-27093.29378832,0.0005,4]
[321442517,1712191840280,-511.7250841,0.0005,90]
[321442519,1712191840289,-539.64830422,0.0005,28]
[321442521,1712191840299,-839.03450068,0.0005,2]
[321442523,1712191840308,-2500.0,0.0005,90]
[321442525,1712191840320,-500.0,0.0005,120]
[321442527,1712191840329,-500.0,0.0005,120]
[321442528,1712191840338,-500.0,0.0005,120]
[321442529,1712191840347,-500.0,0.0005,120]
[321442530,1712191840356,-500.0,0.0005,120]
[321442531,1712191840366,-500.0,0.0005,120]
[321442532,1712191840375,-500.0,0.0005,120]
[321442533,1712191840385,-22649.9167567,0.0005,30]
[321442534,1712191840395,-405.83051062,0.00050011,2]
[321442535,1712191840405,-1005.02,0.0005006,2]
[321442536,1712191840414,-1790.46,0.00050136,64]
[321442537,1712191840423,-1000.0,0.00050157,2]
[321442538,1712191840433,-155.2251499,0.00050249,60]
[321442539,1712191840443,-155.2251499,0.00050318,60]
[321442540,1712191840452,-150.0,0.00050339,2]
[321442541,1712191840462,-155.2251499,0.00050349,60]
[321442542,1712191840471,-155.2251499,0.00050384,60]
[321442543,1712191840481,-1029.0,0.00050406,30]
[321442544,1712191840491,-168.040409,0.00050498,100]
[321442545,1712191840501,-166.66666668,0.00050764,60]
[321442546,1712191840510,-155.2251499,0.00050806,60]
[321442547,1712191840520,-155.2251499,0.00050816,60]
[321442548,1712191840529,-256.08532112,0.000509,120]
[321442549,1712191840538,-235.5644,0.000509,120]
[321442550,1712191840547,-150.0,0.00050913,120]
[321442551,1712191840557,-155.2251499,0.0005092,60]
[321442552,1712191840568,-1005.02,0.0005092,2]
[321442553,1712191840577,-1790.46,0.00050958,68]
[321442554,1712191840586,-150.31,0.0005099,120]
[321442555,1712191840595,-245000.0,0.00051,2]
[321442556,1712191840604,-150.0,0.000511,10]
[321442557,1712191840613,-405.83051062,0.00051203,2]
[321442558,1712191840622,-155.2251499,0.00051223,60]
[321442559,1712191840631,-150.0,0.00051273,120]
[321442560,1712191840640,-150.0,0.00051318,2]
[321442561,1712191840649,-173.040409,0.00051498,112]
[321442562,1712191840658,-150.0,0.000516,10]
[321442563,1712191840668,-155.2251499,0.00051685,60]
[321442564,1712191840677,-628.76,0.00051726,120]
[321442565,1712191840686,-1005.02,0.0005178,2]
[321442566,1712191840696,-1790.46,0.0005178,72]
[321442567,1712191840705,-150.0,0.0005192,69]
[321442568,1712191840715,-1000.0,0.00051986,120]
[321442569,1712191840724,-3704.72715941,0.00052,120]
[321442570,1712191840733,-164.2,0.00052,7]
[321442571,1712191840743,-3238.0,0.00052,7]
[321442572,1712191840752,-164.2,0.00052,7]
[321442573,1712191840761,-3238.0,0.00052,7]
[321442574,1712191840771,-164.2,0.00052,7]
[321442575,1712191840780,-3238.0,0.00052,7]
[321442576,1712191840790,-164.2,0.00052,7]
[321442577,1712191840799,-164.2,0.00052,7]
[321442578,1712191840808,-3238.0,0.00052,7]
[321442579,1712191840821,-164.2,0.00052,7]
[321442580,1712191840830,-3238.0,0.00052,7]
[321442581,1712191840839,-164.2,0.00052,7]
[321442582,1712191840849,-3238.0,0.00052,7]
[321442583,1712191840858,-164.2,0.00052,7]
[321442584,1712191840867,-3238.0,0.00052,7]
[321442585,1712191840876,-164.2,0.00052,7]
[321442586,1712191840885,-3238.0,0.00052,7]
[321442587,1712191840894,-164.2,0.00052,7]
[321442588,1712191840904,-3238.0,0.00052,7]
[321442589,1712191840913,-164.2,0.00052,7]
[321442590,1712191840923,-3238.0,0.00052,7]
[321442591,1712191840932,-164.2,0.00052,7]
[321442592,1712191840942,-3238.0,0.00052,7]
[321442593,1712191840951,-164.2,0.00052,7]
[321442594,1712191840960,-3238.0,0.00052,7]
[321442595,1712191840969,-164.2,0.00052,7]
[321442596,1712191840980,-3238.0,0.00052,7]
[321442597,1712191840989,-3238.0,0.00052,7]
[321442598,1712191840999,-3238.0,0.00052,7]
[321442599,1712191841008,-3238.0,0.00052,7]
[321442600,1712191841018,-164.2,0.00052,7]
[321442601,1712191841027,-3238.0,0.00052,7]
[321442602,1712191841037,-164.2,0.00052,7]
[321442603,1712191841046,-164.2,0.00052,7]
[321442604,1712191841055,-3238.0,0.00052,7]
[321442605,1712191841068,-164.2,0.00052,7]
[321442606,1712191841077,-164.2,0.00052,7]
[321442607,1712191841087,-3238.0,0.00052,7]
[321442608,1712191841097,-164.2,0.00052,7]
[321442609,1712191841106,-164.2,0.00052,7]
[321442610,1712191841116,-3238.0,0.00052,7]
[321442611,1712191841125,-164.2,0.00052,7]
[321442612,1712191841135,-164.2,0.00052,7]
[321442613,1712191841145,-164.2,0.00052,7]
[321442614,1712191841155,-150.31,0.00052045,120]
[321442615,1712191841165,-663.24,0.00052054,60]
[321442616,1712191841174,-176.73,0.00052055,2]
[321442617,1712191841183,-39757.55,0.00052055,30]
[321442618,1712191841193,-150.0,0.000521,11]
[321442619,1712191841202,-270.86,0.00052141,2]
[321442620,1712191841212,-150.0,0.00052297,2]
[321442621,1712191841221,-405.83051062,0.00052394,2]
[321442622,1712191841230,-158.77529118,0.00052405,60]
[321442623,1712191841240,-155.0,0.00052493,60]
[321442624,1712191841249,-173.040409,0.00052498,113]
[321442625,1712191841258,-155.2251499,0.00052518,60]
[321442626,1712191841268,-155.2251499,0.0005252,60]
[321442627,1712191841278,-150.0,0.000526,11]
[321442628,1712191841288,-663.24,0.00052602,60]
[321442629,1712191841297,-1790.46,0.00052602,120]
[321442630,1712191841306,-1005.02,0.0005264,2]
[321442631,1712191841316,-150.0,0.00053,100]
[321442632,1712191841325,-1000.0,0.00053,60]
[321442633,1712191841334,-20000.0,0.00053,10]
[321442634,1712191841343,-155.2251499,0.00053037,60]
[321442635,1712191841352,-1029.0,0.00053059,30]
[321442636,1712191841361,-150.0,0.000531,11]
[321442637,1712191841370,-166.80091269,0.00053112,60]
[321442638,1712191841379,-663.24,0.0005315,60]
[321442639,1712191841390,-155.2251499,0.0005316,60]
[321442640,1712191841402,-152.0,0.00053189,4]
[321442641,1712191841411,-150.0,0.00053275,2]
[321442642,1712191841420,-155.2251499,0.00053282,60]
[321442643,1712191841430,-1790.46,0.00053424,120]
[321442644,1712191841439,-173.040409,0.00053498,114]
[321442645,1712191841448,-150.0,0.000535,101]
[321442646,1712191841458,-1005.02,0.000535,2]
[321442647,1712191841467,-405.83051062,0.00053586,2]
[321442648,1712191841476,-150.0,0.000536,11]
[321442649,1712191841486,-155.2251499,0.00053624,60]
[321442650,1712191841495,-663.24,0.00053698,60]
[321442651,1712191841505,-1060.98813635,0.00053698,5]
[321442652,1712191841514,-387.60626693,0.0005375,30]
[321442653,1712191841523,-7500.0,0.000539,3]
[321442654,1712191841533,-155.2251499,0.00053956,60]
[321442655,1712191841542,-150.31,0.0005398,120]
[321442656,1712191841551,-150.31,0.0005398,120]
[321442657,1712191841560,-150.31,0.0005398,120]
[321442658,1712191841573,-150.31,0.0005398,120]
[321442659,1712191841582,-256.38943209,0.0005399,31]
[321442660,1712191841591,-150.31,0.0005399,120]
[321442661,1712191841600,-150.31,0.0005399,120]
[321442662,1712191841610,-150.31,0.0005399,120]
[321442663,1712191841619,-804948.91775716,0.0005399,30]
[321442664,1712191842009,-45784.97315174,0.0005399,30]
[321442665,1712191842018,-696.88749781,0.00054,30]
[321442666,1712191842027,-497210.35703541,0.00054,2]
[321442667,1712191842039,-2789.64296459,0.00054,2]
[321442668,1712191842048,-153.53,0.00054,7]
[321442669,1712191842057,-150.0,0.00054,102]
[321442670,1712191842067,-3806.0,0.00054,30]
[321442671,1712191842076,-7042.73052696,0.00054,30]
[321442672,1712191842087,-824.46486396,0.00054,30]
[321442673,1712191842682,-1003.70060498,0.00054,30]
[321442674,1712191843144,-14400.0,0.00054,30]
[321442675,1712191843163,-304.75538415,0.00054,30]
[321442678,1712191845621,-752.0,0.00027,2]
[321442679,1712191845630,-606.0,0.0004576,7]
[321442680,1712191845640,-3759.0,0.0005,12]
[321442681,1712191845649,-9470.7041549,0.00054,30]
[321442682,1712191845687,-5338.57577131,0.00054,30]
[321442683,1712191845747,-31713.18472098,0.00054,30]
[321442684,1712191845942,-1292.78122076,0.0005389,3]
[321442687,1712192940235,500.0,0.00040735,120]
[321442688,1712192940893,500.0,0.00040735,120]
[321442689,1712192941169,500.0,0.00040735,120]
[321442690,1712192941474,500.0,0.00040735,120]
[321442691,1712192941854,500.0,0.00040735,120]
[321442692,1712192942138,500.0,0.00040735,120]
[321442693,1712192942477,500.0,0.00040735,120]
[321442694,1712192942775,500.0,0.00040735,120]
[321442695,1712192943063,453.93090068,0.00040735,120]
[321442700,1712192961177,-284.45080365,0.00020159,2]
[321442713,1712193031940,-13.47919635,0.00020159,2]
[321442714,1712193031949,-150.0,0.00022307,2]
[321442715,1712193031959,-155.0,0.00022407,2]
[321442716,1712193031968,-200.0,0.00024563,2]
[321442717,1712193031977,-206.44404336,0.00024585,2]
[321442718,1712193031989,-2204.91595664,0.00024585,2]
[321442719,1712193031998,-150.0,0.00024798,2]
[321442720,1712193032008,-150.0,0.00024798,2]
[321442721,1712193032017,-695.8489,0.00024799,2]
[321442722,1712193032027,-2500.0,0.00024799,2]
[321442723,1712193032036,-405.83051064,0.000248,2]
[321442724,1712193032046,-405.83051062,0.00024807,2]
[321442725,1712193032055,-499.99,0.00024814,2]